fUSD/lending_fUSD_20251206
["ID","MTS","AMOUNT","RATE_DAILY","PERIOD"]
[396540942,1765043460192,-181.194027,0.00016712,2]
[396540943,1765043460201,-181.194027,0.00016712,2]
[396540944,1765043460211,-181.194027,0.00016712,2]
[396540945,1765043460223,-500.0,0.00016712,2]
[396540946,1765043460232,-580.06864286,0.00016712,2]
[396540947,1765043460241,-500.0,0.00016712,2]
[396540948,1765043460251,-500.0,0.00016712,2]
[396540949,1765043460260,-500.0,0.00016712,2]
[396540950,1765043460269,-500.0,0.00016712,2]
[396540951,1765043460278,-151.0,0.00016712,2]
[396540952,1765043460287,-500.0,0.00016712,2]
[396540953,1765043460296,-151.0,0.00016712,2]
[396540954,1765043460305,-522.39,0.00016712,2]
[396540955,1765043460314,-151.0,0.00016712,2]
[396540956,1765043460323,-500.0,0.00016712,2]
[396540957,1765043460334,-151.0,0.00016712,2]
[396540958,1765043460343,-151.0,0.00016712,2]
[396540959,1765043460353,-500.0,0.00016712,2]
[396540960,1765043460362,-151.0,0.00016712,2]
[396540961,1765043460372,-151.0,0.00016712,2]
[396540962,1765043460381,-151.0,0.00016712,2]
[396540963,1765043460390,-435.59279983,0.00016712,2]
[396540964,1765043460400,-500.0,0.00016712,2]
[396540965,1765043460412,-500.0,0.00016712,2]
[396540966,1765043460422,-151.0,0.00016712,2]
[396540967,1765043460432,-151.0,0.00016712,2]
[396540968,1765043460441,-500.0,0.00016712,2]
[396540969,1765043460450,-2425.34,0.00016712,2]
[396540970,1765043460461,-393.733183,0.00016712,2]
[396540971,1765043460470,-393.733183,0.00016712,2]
[396540972,1765043460479,-1638.02,0.00016712,2]
[396540973,1765043460488,-393.733183,0.00016712,2]
[396540974,1765043460497,-393.733183,0.00016712,2]
[396540975,1765043460506,-500.0,0.00016712,2]
[396540976,1765043460515,-393.733183,0.00016712,2]
[396540977,1765043460524,-393.733183,0.00016712,2]
[396540978,1765043460534,-393.733183,0.00016712,2]
[396540979,1765043460543,-500.0,0.00016712,2]
[396540980,1765043460552,-393.733183,0.00016712,2]
[396540981,1765043460561,-500.0,0.00016712,2]
[396540982,1765043460570,-1032.03,0.00016712,2]
[396540983,1765043460579,-500.0,0.00016712,2]
[396540984,1765043460588,-2561.51,0.00016712,2]
[396540985,1765043460596,-607.57,0.00016712,2]
[396540986,1765043460605,-500.0,0.00016712,2]
[396540987,1765043460615,-500.0,0.00016712,2]
[396540988,1765043460624,-500.0,0.00016712,2]
[396540989,1765043460633,-500.0,0.00016712,2]
[396540990,1765043460643,-500.0,0.00016712,2]
[396540991,1765043460653,-500.0,0.00016712,2]
[396540992,1765043460663,-445.52734245,0.00016712,2]
[396540993,1765043460672,-500.0,0.00016712,2]
[396540994,1765043460682,-500.0,0.00016712,2]
[396540995,1765043460691,-507.66,0.00016712,2]
[396540996,1765043460700,-500.0,0.00016712,2]
[396540997,1765043460709,-580.08225028,0.00016712,2]
[396540998,1765043460719,-151.0,0.00016712,2]
[396540999,1765043460728,-500.0,0.00016712,2]
[396541000,1765043460738,-151.0,0.00016712,2]
[396541001,1765043460747,-151.0,0.00016712,2]
[396541002,1765043460756,-500.0,0.00016712,2]
[396541003,1765043460765,-151.0,0.00016712,2]
[396541004,1765043460773,-151.0,0.00016712,2]
[396541005,1765043460783,-151.0,0.00016712,2]
[396541006,1765043460792,-500.0,0.00016712,2]
[396541007,1765043460801,-151.0,0.00016712,2]
[396541008,1765043460810,-151.0,0.00016712,2]
[396541009,1765043460819,-151.0,0.00016712,2]
[396541010,1765043460829,-500.0,0.00016712,2]
[396541011,1765043460838,-151.0,0.00016712,2]
[396541012,1765043460847,-151.0,0.00016712,2]
[396541013,1765043460856,-151.0,0.00016712,2]
[396541014,1765043460865,-151.0,0.00016712,2]
[396541015,1765043460878,-151.0,0.00016712,2]
[396541016,1765043460887,-151.0,0.00016712,2]
[396541017,1765043460897,-151.0,0.00016712,2]
[396541018,1765043460907,-151.0,0.00016712,2]
[396541019,1765043460917,-151.0,0.00016712,2]
[396541020,1765043460926,-500.0,0.00016712,2]
[396541021,1765043460935,-192.183841,0.00016712,2]
[396541022,1765043460944,-500.0,0.00016712,2]
[396541023,1765043460954,-151.0,0.00016712,2]
[396541024,1765043460964,-209.09638,0.00016712,2]
[396541025,1765043460974,-880.945161,0.00016712,2]
[396541026,1765043460982,-151.983366,0.00016712,2]
[396541027,1765043460991,-2771.76,0.00016712,2]
[396541028,1765043461000,-500.0,0.00016712,2]
[396541029,1765043461009,-500.0,0.00016712,2]
[396541030,1765043461019,-500.0,0.00016712,2]
[396541031,1765043461028,-171.588348,0.00016712,2]
[396541032,1765043461037,-500.0,0.00016712,2]
[396541033,1765043461046,-171.588348,0.00016712,2]
[396541034,1765043461055,-171.588348,0.00016712,2]
[396541035,1765043461066,-171.588348,0.00016712,2]
[396541036,1765043461076,-1647.054481,0.00016712,2]
[396541037,1765043461086,-171.588348,0.00016712,2]
[396541038,1765043461096,-171.588348,0.00016712,2]
[396541039,1765043461105,-171.588348,0.00016712,2]
[396541040,1765043461114,-171.588348,0.00016712,2]
[396541041,1765043461123,-151.0,0.00016712,2]
[396541042,1765043461132,-500.0,0.00016712,2]
[396541043,1765043461142,-500.0,0.00016712,2]
[396541044,1765043461151,-152.718734,0.00016712,2]
[396541045,1765043461160,-500.0,0.00016712,2]
[396541046,1765043461169,-500.0,0.00016712,2]
[396541047,1765043461187,-500.0,0.00016712,2]
[396541048,1765043461196,-1178.85,0.00016712,2]
[396541049,1765043461205,-7508.683779,0.00016712,2]
[396541050,1765043461221,-500.0,0.00016712,2]
[396541051,1765043461230,-151.0,0.00016712,2]
[396541052,1765043461239,-167.938169,0.00016712,2]
[396541053,1765043461248,-2053.712827,0.00016712,2]
[396541054,1765043461257,-500.0,0.00016712,2]
[396541055,1765043461266,-2053.712827,0.00016712,2]
[396541056,1765043461275,-500.0,0.00016712,2]
[396541057,1765043461284,-500.0,0.00016712,2]
[396541058,1765043461293,-2053.712827,0.00016712,2]
[396541059,1765043461302,-1333.60498637,0.00016712,2]
[396541060,1765043461548,-10000.0,0.00016338,2]
[396541061,1765043461559,-151.0,0.00016438,2]
[396541062,1765043461568,-720.10784063,0.00016712,2]
[396541063,1765043461578,-423.811697,0.00016712,2]
[396541064,1765043461587,-2053.712827,0.00016712,2]
[396541065,1765043461596,-2053.712827,0.00016712,2]
[396541066,1765043461605,-151.0,0.00016712,2]
[396541067,1765043461614,-500.0,0.00016712,2]
[396541068,1765043461623,-151.0,0.00016712,2]
[396541069,1765043461632,-2053.712827,0.00016712,2]
[396541070,1765043461641,-2053.712827,0.00016712,2]
[396541071,1765043461651,-2496.525425,0.00016712,2]
[396541072,1765043461660,-954.32,0.00016712,2]
[396541073,1765043461670,-500.0,0.00016712,2]
[396541074,1765043461679,-500.0,0.00016712,2]
[396541075,1765043461689,-500.0,0.00016712,2]
[396541076,1765043461697,-500.0,0.00016712,2]
[396541077,1765043461706,-3931.22,0.00016712,2]
[396541078,1765043461716,-500.0,0.00016712,2]
[396541079,1765043461726,-500.0,0.00016712,2]
[396541080,1765043461735,-500.0,0.00016712,2]
[396541081,1765043461744,-500.0,0.00016712,2]
[396541082,1765043461755,-2219.2,0.00016712,2]
[396541083,1765043461763,-500.0,0.00016712,2]
[396541084,1765043461773,-151.0,0.00016712,2]
[396541085,1765043461781,-151.0,0.00016712,2]
[396541086,1765043461790,-500.0,0.00016712,2]
[396541087,1765043461800,-500.0,0.00016712,2]
[396541088,1765043461809,-192.332509,0.00016712,2]
[396541089,1765043461818,-500.0,0.00016712,2]
[396541090,1765043461827,-20.03549821,0.00016712,2]
[396541091,1765043461843,-479.96450179,0.00016712,2]
[396541092,1765043461852,-151.0,0.00016712,2]
[396541093,1765043461862,-151.0,0.00016712,2]
[396541094,1765043461871,-500.0,0.00016712,2]
[396541095,1765043461883,-500.0,0.00016712,2]
[396541096,1765043461893,-175.227689,0.00016712,2]
[396541097,1765043461902,-192.332509,0.00016712,2]
[396541098,1765043461912,-27.05874325,0.00016712,2]
[396541864,1765044379349,1904.1,0.00025,120]
[396541888,1765044631871,-714.85895225,0.00013699,2]
[396541889,1765044631901,-285.14104775,0.00013699,2]
[396541890,1765044631911,-152.33736979,0.00013699,2]
[396541891,1765044631925,-263.0,0.00013699,2]
[396541892,1765044631934,-1800.0,0.00014512,2]
[396541893,1765044631945,-3444.34,0.00014585,2]
[396541894,1765044631954,-200.0,0.0001459,2]
[396541895,1765044631963,-1200.0,0.00014645,2]
[396541896,1765044631973,-166.66,0.00014646,2]
[396541897,1765044631982,-468.92089066,0.00014646,2]
[396541898,1765044631992,-300.0,0.00014659,2]
[396541899,1765044632001,-2751.0,0.0001466,2]
[396541900,1765044632011,-578.20924308,0.00014745,2]
[396541901,1765044632020,-166.66,0.00014954,2]
[396541902,1765044632030,-1600.0,0.00015028,2]
[396541903,1765044632043,-4529.80754199,0.00015042,2]
[396541904,1765044632054,-1013.07245801,0.00015042,2]
[396541905,1765044632064,-216.87,0.00015174,2]
[396541906,1765044632073,-166.66,0.00015262,2]
[396541907,1765044632083,-150.0,0.00015288,2]
[396541908,1765044632092,-150.0,0.00015288,2]
[396541909,1765044632101,-150.0,0.00015288,2]
[396541910,1765044632111,-150.0,0.00015288,2]
[396541911,1765044632120,-150.0,0.00015288,2]
[396541912,1765044632129,-150.0,0.00015288,2]
[396541914,1765044632139,-150.0,0.00015288,2]
[396541916,1765044632147,-150.4153374,0.00015288,2]
[396541918,1765044632156,-150.0,0.00015288,2]
[396541920,1765044632166,-150.0,0.00015288,2]
[396541922,1765044632175,-150.0,0.00015288,2]
[396541924,1765044632184,-1007.94648807,0.00015347,2]
[396541926,1765044632194,-152.33736979,0.00015347,2]
[396541928,1765044632203,-2224.49116418,0.00015376,2]
[396541930,1765044632214,-720.00883582,0.00015376,2]
[396541932,1765044632224,-275.87825362,0.00015385,2]
[396541934,1765044632235,-224.12174638,0.00015385,2]
[396541936,1765044632245,-263.95407347,0.00015385,2]
[396541938,1765044632255,-368.18477851,0.00015385,2]
[396541940,1765044632264,-562.92160306,0.00015385,2]
[396541942,1765044632274,-500.0,0.00015385,2]
[396541944,1765044632283,-11541.33877151,0.00015386,2]
[396541951,1765044632339,-95611.95114144,0.00015386,2]
[396541953,1765044632350,-1574.81341876,0.00015386,2]
[396541955,1765044632361,-10856.21947319,0.00015386,2]
[396542019,1765044637523,-639.8168967,0.00015386,2]
[396542020,1765044637630,-44782.01842035,0.00015386,2]
[396542021,1765044637728,-161072.56307805,0.00015386,2]
[396542022,1765044637739,-150.0,0.00015476,2]
[396542023,1765044637750,-150.0,0.00015476,2]
[396542024,1765044637766,-322.6107,0.00015476,2]
[396542025,1765044637777,-500.0,0.00015476,2]
[396542026,1765044637789,-500.0,0.00015476,2]
[396542027,1765044637800,-500.0,0.00015476,2]
[396542028,1765044637812,-500.0,0.00015476,2]
[396542029,1765044637823,-500.0,0.00015476,2]
[396542030,1765044637839,-500.0,0.00015476,2]
[396542031,1765044637850,-500.0,0.00015476,2]
[396542033,1765044637861,-500.0,0.00015476,2]
[396542035,1765044637872,-500.0,0.00015476,2]
[396542036,1765044637883,-500.0,0.00015476,2]
[396542037,1765044637894,-500.0,0.00015476,2]
[396542038,1765044637905,-151.0,0.00015476,2]
[396542039,1765044637916,-500.0,0.00015476,2]
[396542040,1765044637927,-500.0,0.00015476,2]
[396542041,1765044637938,-500.0,0.00015476,2]
[396542042,1765044637952,-500.0,0.00015476,2]
[396542043,1765044637963,-500.0,0.00015476,2]
[396542044,1765044637974,-500.0,0.00015476,2]
[396542045,1765044637985,-500.0,0.00015476,2]
[396542046,1765044637996,-500.0,0.00015476,2]
[396542047,1765044638008,-500.0,0.00015476,2]
[396542048,1765044638019,-500.0,0.00015476,2]
[396542049,1765044638031,-500.0,0.00015476,2]
[396542050,1765044638042,-2000.0,0.00015476,2]
[396542051,1765044638053,-516.72001383,0.00015476,2]
[396542052,1765044638065,-200.0,0.00015476,2]
[396542053,1765044638076,-350.19,0.00015485,2]
[396542054,1765044638088,-166.66,0.00015571,2]
[396542055,1765044638099,-150.0,0.00015665,2]
[396542056,1765044638110,-150.0,0.00015665,2]
[396542057,1765044638123,-150.0,0.00015684,2]
[396542058,1765044638134,-150.0,0.00015712,2]
[396542059,1765044638146,-150.0,0.00015712,2]
[396542060,1765044638157,-424.8901859,0.00015768,2]
[396542061,1765044638169,-908.0,0.00015778,2]
[396542062,1765044638181,-150.0,0.00015854,2]
[396542063,1765044638192,-150.0,0.00015854,2]
[396542064,1765044638205,-166.66,0.00015879,2]
[396542065,1765044638216,-289.64,0.00015929,2]
[396542066,1765044638227,-9411.02,0.00015965,2]
[396542067,1765044638239,-4090.5884,0.00015972,2]
[396542068,1765044638250,-3736.5553,0.00015972,2]
[396542069,1765044638262,-159.0,0.00015984,2]
[396542070,1765044638273,-514.05399617,0.00015999,2]
[396542071,1765044638286,-500.0,0.00015999,2]
[396542072,1765044638297,-4896.06119481,0.00016037,2]
[396542073,1765044638308,-150.0,0.00016043,2]
[396542074,1765044638329,-150.0,0.00016043,2]
[396542075,1765044638344,-287.0,0.00016049,2]
[396542076,1765044638367,-150.0,0.00016072,2]
[396542077,1765044638380,-150.0,0.00016072,2]
[396542078,1765044638393,-3446.0,0.00016072,2]
[396542079,1765044638406,-1605.0,0.00016072,2]
[396542080,1765044638419,-1334.924,0.00016072,2]
[396542081,1765044638432,-611.0,0.00016072,2]
[396542082,1765044638445,-1259.0,0.00016072,2]
[396542083,1765044638462,-614.0,0.00016072,2]
[396542084,1765044638475,-1195.0,0.00016072,2]
[396542085,1765044638487,-375.302,0.00016072,2]
[396542086,1765044638499,-562.0,0.00016072,2]
[396542087,1765044638511,-6513.0,0.00016072,2]
[396542088,1765044638523,-1680.0,0.00016109,2]
[396542089,1765044638536,-4896.06119473,0.00016133,2]
[396542090,1765044638548,-150.0,0.00016137,2]
[396542091,1765044638559,-150.0,0.00016137,2]
[396542092,1765044638572,-150.0,0.00016137,2]
[396542093,1765044638583,-166.66,0.00016187,2]
[396542094,1765044638595,-4896.06119473,0.00016229,2]
[396542095,1765044638606,-150.0,0.00016231,2]
[396542096,1765044638617,-150.0,0.00016231,2]
[396542097,1765044638628,-951.0,0.00016273,2]
[396542098,1765044638640,-1704.70774689,0.00016286,5]
[396542099,1765044638651,-3361.174,0.00016287,2]
[396542100,1765044638663,-150.73,0.000163,2]
[396542101,1765044638675,-527.0,0.00016313,2]
[396542102,1765044638687,-4896.06119473,0.00016325,2]
[396542103,1765044638698,-6574.47025002,0.00016338,2]
[396542104,1765044638710,-175.21191822,0.00016338,2]
[396542105,1765044638722,-10000.0,0.00016338,2]
[396542106,1765044638734,-1000.0,0.00016338,2]
[396542107,1765044638746,-16643.9869,0.00016338,2]
[396542108,1765044638759,-168.0,0.00016357,2]
[396542109,1765044638771,-951.0,0.00016377,2]
[396542110,1765044638782,-6574.47025001,0.000164,2]
[396542111,1765044638795,-299.0,0.00016406,2]
[396542112,1765044638806,-150.0,0.0001642,2]
[396542113,1765044638819,-150.0,0.0001642,2]
[396542114,1765044638830,-4896.06119473,0.00016421,2]
[396542115,1765044638843,-222.56764232,0.00016422,2]
[396542116,1765044638855,-998.28861691,0.00016428,2]
[396542117,1765044638868,-2183.06718799,0.00016431,2]
[396542118,1765044638881,-951.0,0.00016434,2]
[396542119,1765044638896,-951.0,0.00016436,2]
[396542120,1765044638907,-500.0,0.00016437,2]
[396542121,1765044638918,-389.64233218,0.00016437,2]
[396542122,1765044638929,-500.0,0.00016437,2]
[396542123,1765044638939,-500.0,0.00016437,2]
[396542125,1765044639504,-500.0,0.00016437,2]
[396542126,1765044639541,-501.79460066,0.00016438,2]
[396542127,1765044639565,-500.0,0.00016438,2]
[396542128,1765044639578,-500.0,0.00016438,2]
[396542129,1765044639587,-502.86904478,0.00016438,2]
[396542130,1765044639596,-501.03550429,0.00016438,2]
[396542131,1765044639605,-500.0,0.00016438,2]
[396542132,1765044639614,-500.0,0.00016438,2]
[396542133,1765044639623,-500.0,0.00016438,2]
[396542134,1765044639633,-500.0,0.00016438,2]
[396542135,1765044639642,-500.0,0.00016438,2]
[396542136,1765044639651,-500.0,0.00016438,2]
[396542137,1765044639661,-500.0,0.00016438,2]
[396542138,1765044639670,-500.0,0.00016438,2]
[396542139,1765044639679,-500.0,0.00016438,2]
[396542140,1765044639689,-501.21,0.00016438,2]
[396542141,1765044639698,-502.30068383,0.00016438,2]
[396542142,1765044639707,-500.0,0.00016438,2]
[396542143,1765044639717,-2158.2,0.00016438,2]
[396542144,1765044639726,-500.0,0.00016438,2]
[396542145,1765044639736,-2850.34,0.00016438,2]
[396542146,1765044639745,-500.0,0.00016438,2]
[396542147,1765044639755,-500.0,0.00016438,2]
[396542148,1765044639764,-500.0,0.00016438,2]
[396542149,1765044639773,-500.0,0.00016438,2]
[396542150,1765044639783,-500.0,0.00016438,2]
[396542151,1765044639792,-500.0,0.00016438,2]
[396542152,1765044639805,-500.0,0.00016438,2]
[396542153,1765044639814,-500.0,0.00016438,2]
[396542154,1765044639823,-501.81566196,0.00016438,2]
[396542155,1765044639833,-500.0,0.00016438,2]
[396542156,1765044639842,-500.0,0.00016438,2]
[396542157,1765044639852,-575.31657418,0.00016438,2]
[396542158,1765044639862,-500.0,0.00016438,2]
[396542159,1765044639873,-500.0,0.00016438,2]
[396542160,1765044639882,-500.0,0.00016438,2]
[396542161,1765044639892,-500.0,0.00016438,2]
[396542162,1765044639902,-500.0,0.00016438,2]
[396542163,1765044639913,-300.29885268,0.00016438,2]
[396542164,1765044639922,-500.0,0.00016438,2]
[396542165,1765044639932,-500.0,0.00016438,2]
[396542166,1765044639941,-500.0,0.00016438,2]
[396542167,1765044639951,-500.0,0.00016438,2]
[396542168,1765044639960,-500.0,0.00016438,2]
[396542169,1765044639969,-500.0,0.00016438,2]
[396542170,1765044639980,-502.89890669,0.00016438,2]
[396542171,1765044639989,-500.0,0.00016438,2]
[396542172,1765044640000,-500.0,0.00016438,2]
[396542173,1765044640010,-500.0,0.00016438,2]
[396542174,1765044640019,-500.0,0.00016438,2]
[396542175,1765044640030,-2666.76,0.00016438,2]
[396542176,1765044640040,-225.21713509,0.00016438,2]
[396542177,1765044640050,-500.0,0.00016438,2]
[396542178,1765044640062,-500.0,0.00016438,2]
[396542179,1765044640071,-500.0,0.00016438,2]
[396542180,1765044640080,-500.0,0.00016438,2]
[396542181,1765044640090,-500.0,0.00016438,2]
[396542182,1765044640100,-600.0,0.00016438,2]
[396542183,1765044640110,-500.0,0.00016438,2]
[396542184,1765044640120,-500.0,0.00016438,2]
[396542185,1765044640129,-598.42,0.00016438,2]
[396542187,1765044640139,-500.0,0.00016438,2]
[396542188,1765044640148,-500.0,0.00016438,2]
[396542189,1765044640159,-500.0,0.00016438,2]
[396542190,1765044640167,-500.0,0.00016438,2]
[396542191,1765044640177,-2672.45,0.00016438,2]
[396542193,1765044640189,-500.0,0.00016438,2]
[396542195,1765044640199,-500.93769086,0.00016438,2]
[396542197,1765044640209,-500.0,0.00016438,2]
[396542198,1765044640218,-500.0,0.00016438,2]
[396542199,1765044640227,-540.39083481,0.00016438,2]
[396542200,1765044640236,-500.0,0.00016438,2]
[396542201,1765044640245,-500.0,0.00016438,2]
[396542202,1765044640254,-500.0,0.00016438,2]
[396542203,1765044640264,-1061.78,0.00016438,2]
[396542204,1765044640273,-500.0,0.00016438,2]
[396542205,1765044640283,-500.0,0.00016438,2]
[396542206,1765044640292,-500.0,0.00016438,2]
[396542207,1765044640301,-500.0,0.00016438,2]
[396542208,1765044640311,-500.0,0.00016438,2]
[396542209,1765044640320,-500.0,0.00016438,2]
[396542210,1765044640329,-500.0,0.00016438,2]
[396542211,1765044640338,-500.0,0.00016438,2]
[396542212,1765044640347,-500.0,0.00016438,2]
[396542213,1765044640358,-500.0,0.00016438,2]
[396542214,1765044640367,-500.0,0.00016438,2]
[396542215,1765044640377,-500.0,0.00016438,2]
[396542216,1765044640386,-500.0,0.00016438,2]
[396542217,1765044640397,-596.86,0.00016438,2]
[396542218,1765044640406,-500.0,0.00016438,2]
[396542219,1765044640416,-500.0,0.00016438,2]
[396542220,1765044640426,-500.0,0.00016438,2]
[396542221,1765044640436,-500.95075378,0.00016438,2]
[396542222,1765044640445,-500.0,0.00016438,2]
[396542223,1765044640460,-500.0,0.00016438,2]
[396542224,1765044640469,-503.4737313,0.00016438,2]
[396542225,1765044640479,-504.05219158,0.00016438,2]
[396542226,1765044640488,-500.0,0.00016438,2]
[396542227,1765044640499,-500.0,0.00016438,2]
[396542228,1765044640508,-500.0,0.00016438,2]
[396542229,1765044640517,-500.0,0.00016438,2]
[396542230,1765044640526,-589.10380445,0.00016438,2]
[396542231,1765044640536,-500.0,0.00016438,2]
[396542232,1765044640545,-500.0,0.00016438,2]
[396542233,1765044640554,-502.49133495,0.00016438,2]
[396542234,1765044640563,-585.49,0.00016438,2]
[396542235,1765044640576,-500.42233079,0.00016438,2]
[396542236,1765044640585,-500.0,0.00016438,2]
[396542237,1765044640595,-500.0,0.00016438,2]
[396542238,1765044640604,-501.61657477,0.00016438,2]
[396542239,1765044640614,-500.19884805,0.00016438,2]
[396542240,1765044640624,-550.3,0.00016438,2]
[396542241,1765044640633,-500.0,0.00016438,2]
[396542242,1765044640643,-706.0,0.00016438,2]
[396542243,1765044640652,-500.92222263,0.00016438,2]
[396542244,1765044640663,-500.0,0.00016438,2]
[396542245,1765044640672,-500.0,0.00016438,2]
[396542246,1765044640682,-500.0,0.00016438,2]
[396542247,1765044640692,-500.0,0.00016438,2]
[396542248,1765044640702,-500.0,0.00016438,2]
[396542249,1765044640712,-500.0,0.00016438,2]
[396542250,1765044640721,-500.0,0.00016438,2]
[396542251,1765044640730,-499.31705567,0.00016438,2]
[396542252,1765044640739,-2859.94,0.00016438,2]
[396542253,1765044640749,-500.0,0.00016438,2]
[396542254,1765044640758,-2560.52,0.00016438,2]
[396542255,1765044640767,-500.0,0.00016438,2]
[396542256,1765044640777,-500.0,0.00016438,2]
[396542257,1765044640787,-500.0,0.00016438,2]
[396542258,1765044640796,-500.0,0.00016438,2]
[396542259,1765044640805,-2700.96,0.00016438,2]
[396542260,1765044640814,-501.76306707,0.00016438,2]
[396542261,1765044640823,-502.335444,0.00016438,2]
[396542262,1765044640832,-500.0,0.00016438,2]
[396542263,1765044640842,-300.0,0.00016438,2]
[396542264,1765044640851,-500.0,0.00016438,2]
[396542265,1765044640861,-500.0,0.00016438,2]
[396542266,1765044640870,-500.0,0.00016438,2]
[396542267,1765044640879,-869.26,0.00016438,2]
[396542268,1765044640888,-843.49,0.00016438,2]
[396542269,1765044640897,-500.0,0.00016438,2]
[396542270,1765044640908,-500.0,0.00016438,2]
[396542271,1765044640917,-500.0,0.00016438,2]
[396542272,1765044640927,-500.0,0.00016438,2]
[396542273,1765044640936,-500.0,0.00016438,2]
[396542274,1765044640944,-500.0,0.00016438,2]
[396542275,1765044640953,-500.0,0.00016438,2]
[396542276,1765044640965,-500.0,0.00016438,2]
[396542277,1765044640974,-500.0,0.00016438,2]
[396542278,1765044640983,-695.81,0.00016438,2]
[396542279,1765044640993,-500.0,0.00016438,2]
[396542280,1765044641002,-500.0,0.00016438,2]
[396542281,1765044641011,-503.79998225,0.00016438,2]
[396542282,1765044641021,-500.0,0.00016438,2]
[396542283,1765044641031,-500.0,0.00016438,2]
[396542284,1765044641040,-501.54488646,0.00016438,2]
[396542285,1765044641049,-500.0,0.00016438,2]
[396542287,1765044641059,-500.0,0.00016438,2]
[396542289,1765044641068,-500.0,0.00016438,2]
[396542290,1765044641077,-2564.68,0.00016438,2]
[396542291,1765044641086,-500.0,0.00016438,2]
[396542292,1765044641095,-500.0,0.00016438,2]
[396542293,1765044641105,-500.0,0.00016438,2]
[396542294,1765044641114,-531.74,0.00016438,2]
[396542295,1765044641123,-500.0,0.00016438,2]
[396542296,1765044641133,-500.0,0.00016438,2]
[396542297,1765044641142,-2589.47,0.00016438,2]
[396542298,1765044641151,-602.02,0.00016438,2]
[396542299,1765044641160,-2878.36,0.00016438,2]
[396542300,1765044641169,-500.0,0.00016438,2]
[396542301,1765044641178,-502.75525601,0.00016438,2]
[396542302,1765044641187,-500.0,0.00016438,2]
[396542303,1765044641197,-2945.1,0.00016438,2]
[396542304,1765044641206,-500.0,0.00016438,2]
[396542305,1765044641215,-500.0,0.00016438,2]
[396542306,1765044641224,-500.0,0.00016438,2]
[396542307,1765044641233,-500.0,0.00016438,2]
[396542308,1765044641242,-500.0,0.00016438,2]
[396542309,1765044641251,-500.0,0.00016438,2]
[396542310,1765044641260,-501.97212613,0.00016438,2]
[396542311,1765044641270,-500.0,0.00016438,2]
[396542312,1765044641279,-500.0,0.00016438,2]
[396542313,1765044641288,-527.64,0.00016438,2]
[396542314,1765044641297,-500.0,0.00016438,2]
[396542315,1765044641306,-1969.58,0.00016438,2]
[396542316,1765044641315,-2687.06,0.00016438,2]
[396542317,1765044641324,-500.0,0.00016438,2]
[396542318,1765044641333,-500.0,0.00016438,2]
[396542319,1765044641342,-500.0,0.00016438,2]
[396542320,1765044641351,-500.0,0.00016438,2]
[396542321,1765044641363,-500.0,0.00016438,2]
[396542322,1765044641372,-2888.92,0.00016438,2]
[396542323,1765044641381,-503.3343658,0.00016438,2]
[396542324,1765044641391,-500.0,0.00016438,2]
[396542325,1765044641400,-500.0,0.00016438,2]